{"text_format":"1","workbook":"xlsx","n_sheets":4,"sheets":["WSA_intern","Laufblatt","Einstellungen","Tabelle3"],"not_rendered":{"charts":0,"images":1,"macros":1,"external_links":0,"defined_names":2,"comments":0,"pivot_tables":0},"unopened":[],"bounds":{"document_bytes":16777216,"sheet_cells":100000,"rows_first":2000,"rows_last":500,"rows_between":2000,"halvings":0,"cell_chars":16384,"cell_head_chars":4096},"cells_cut":0,"cells_raw":0,"read":"whole","date_system":"1900"}

{"sheet":"WSA_intern","index":0,"n_rows":125,"n_cols":60,"rows_kept":125,"cut":false,"hidden":false,"merged":[[120,57,121,58],[124,57,125,58],[104,59,107,94],[108,59,111,94],[112,59,115,94],[116,59,119,94],[120,59,123,94],[124,59,127,94],[112,57,113,58],[100,59,103,94],[100,57,101,58],[104,57,105,58],[108,57,109,58],[116,57,117,58],[96,57,97,58],[77,56,78,94],[28,48,30,51],[80,57,81,58],[80,59,83,94],[84,57,85,58],[84,59,87,94],[88,59,91,94],[88,57,89,58],[96,59,99,94],[27,41,27,47],[31,48,33,51],[31,41,33,47],[92,59,95,94],[92,57,93,58],[28,38,30,40],[31,38,33,40],[21,24,21,37],[21,38,21,51],[24,24,24,37],[24,38,24,51],[28,24,28,37],[31,24,31,37],[22,24,23,37],[22,38,23,51],[25,24,26,37],[25,38,26,51],[29,24,30,37],[32,24,33,37],[28,41,30,47],[27,48,27,51]]}
[]
[]
[]
[]
[]
[]
[]
[]
[]
[]
[]
[]
[]
[]
[]
[]
[]
[]
[]
[]
[]
[null,null,null,null,null,null,null,null,null,null,null,null,null,null,null,null,null,null,null,null,null,null,null,null,"Fahrzeug-Nr.:",null,null,null,null,null,null,null,null,null,null,null,null,null,"Farbe:"]
[null,null,null,null,null,null,null,null,null,null,null,null,null,null,null,null,null,null,null,null,null,null,null,null,"124028",null,null,null,null,null,null,null,null,null,null,null,null,null,"Platinium Grau Metallic"]
[]
[null,null,null,null,null,null,null,null,null,null,null,null,null,null,null,null,null,null,null,null,null,null,null,null,"Fahrzeug-Marke:",null,null,null,null,null,null,null,null,null,null,null,null,null,"Ausführung"]
[null,null,null,null,null,null,null,null,null,null,null,null,null,null,null,null,null,null,null,null,null,null,null,null,"Peugeot",null,null,null,null,null,null,null,null,null,null,null,null,null,"Rifter L1 Active Pack PT 110 "]
[]
[null,null,null,null,null,null,null,null,null,null,null,null,null,null,null,null,null,null,null,null,null,null,null,null,null,null,null,null,null,null,null,null,null,null,null,null,null,null,null,null,null,"Datum",null,null,null,null,null,null,"Uhrzeit"]
[null,null,null,null,null,null,null,null,null,null,null,null,null,null,null,null,null,null,null,null,null,null,null,null,"Kunde:",null,null,null,null,null,null,null,null,null,null,null,null,null,"Fertig-stellung:",null,null,"05.09.2025",null,null,null,null,null,null,"10:00"]
[null,null,null,null,null,null,null,null,null,null,null,null,null,null,null,null,null,null,null,null,null,null,null,null,"Janine Krieger"]
[]
[null,null,null,null,null,null,null,null,null,null,null,null,null,null,null,null,null,null,null,null,null,null,null,null,"Verkäufer:",null,null,null,null,null,null,null,null,null,null,null,null,null,"Auslie-ferung:",null,null,"06.09.2025",null,null,null,null,null,null,"12:00"]
[null,null,null,null,null,null,null,null,null,null,null,null,null,null,null,null,null,null,null,null,null,null,null,null,"Dirk Graf"]
[]
[]
[]
[]
[]
[]
[]
[]
[]
[]
[]
[]
[]
[]
[]
[]
[]
[]
[]
[]
[]
[]
[]
[]
[]
[]
[]
[]
[]
[]
[]
[]
[]
[]
[]
[]
[]
[]
[]
[]
[]
[]
[]
[]
[null,null,null,null,null,null,null,null,null,null,null,null,null,null,null,null,null,null,null,null,null,null,null,null,null,null,null,null,null,null,null,null,null,null,null,null,null,null,null,null,null,null,null,null,null,null,null,null,null,null,null,null,null,null,null,null,"Auszuführende Arbeiten /einzubauende Teile"]
[]
[]
[null,null,null,null,null,null,null,null,null,null,null,null,null,null,null,null,null,null,null,null,null,null,null,null,null,null,null,null,null,null,null,null,null,null,null,null,null,null,null,null,null,null,null,null,null,null,null,null,null,null,null,null,null,null,null,null,null,{"$f":"IF(BH81=\"\",\"\",IF(BH81>0,\"-\"))","v":"-"},null,"VFW zur Auslieferung vorbereiten"]
[]
[]
[]
[null,null,null,null,null,null,null,null,null,null,null,null,null,null,null,null,null,null,null,null,null,null,null,null,null,null,null,null,null,null,null,null,null,null,null,null,null,null,null,null,null,null,null,null,null,null,null,null,null,null,null,null,null,null,null,null,null,{"$f":"IF(BH85=\"\",\"\",IF(BH85>0,\"-\"))","v":"-"},null,"Übergabe-Durchsicht durchführen (letzte Inspektion 26.05.2025)"]
[]
[]
[]
[null,null,null,null,null,null,null,null,null,null,null,null,null,null,null,null,null,null,null,null,null,null,null,null,null,null,null,null,null,null,null,null,null,null,null,null,null,null,null,null,null,null,null,null,null,null,null,null,null,null,null,null,null,null,null,null,null,{"$f":"IF(BH89=\"\",\"\",IF(BH89>0,\"-\"))","v":"-"},null,"GW-Aufbereitung"]
[]
[]
[]
[null,null,null,null,null,null,null,null,null,null,null,null,null,null,null,null,null,null,null,null,null,null,null,null,null,null,null,null,null,null,null,null,null,null,null,null,null,null,null,null,null,null,null,null,null,null,null,null,null,null,null,null,null,null,null,null,null,{"$f":"IF(BH93=\"\",\"\",IF(BH93>0,\"-\"))","v":"-"},null,"eingelagerte Winterkompletträder in Fahrzeug legen"]
[]
[]
[]
[null,null,null,null,null,null,null,null,null,null,null,null,null,null,null,null,null,null,null,null,null,null,null,null,null,null,null,null,null,null,null,null,null,null,null,null,null,null,null,null,null,null,null,null,null,null,null,null,null,null,null,null,null,null,null,null,null,{"$f":"IF(BH97=\"\",\"\",IF(BH97>0,\"-\"))","v":"-"},null,"TÜV & AU durchführen"]
[]
[]
[]
[null,null,null,null,null,null,null,null,null,null,null,null,null,null,null,null,null,null,null,null,null,null,null,null,null,null,null,null,null,null,null,null,null,null,null,null,null,null,null,null,null,null,null,null,null,null,null,null,null,null,null,null,null,null,null,null,null,{"$f":"IF(BH101=\"\",\"\",IF(BH101>0,\"-\"))","v":""}]
[]
[]
[]
[null,null,null,null,null,null,null,null,null,null,null,null,null,null,null,null,null,null,null,null,null,null,null,null,null,null,null,null,null,null,null,null,null,null,null,null,null,null,null,null,null,null,null,null,null,null,null,null,null,null,null,null,null,null,null,null,null,{"$f":"IF(BH105=\"\",\"\",IF(BH105>0,\"-\"))","v":""}]
[]
[]
[]
[null,null,null,null,null,null,null,null,null,null,null,null,null,null,null,null,null,null,null,null,null,null,null,null,null,null,null,null,null,null,null,null,null,null,null,null,null,null,null,null,null,null,null,null,null,null,null,null,null,null,null,null,null,null,null,null,null,{"$f":"IF(BH109=\"\",\"\",IF(BH109>0,\"-\"))","v":""}]
[]
[]
[]
[null,null,null,null,null,null,null,null,null,null,null,null,null,null,null,null,null,null,null,null,null,null,null,null,null,null,null,null,null,null,null,null,null,null,null,null,null,null,null,null,null,null,null,null,null,null,null,null,null,null,null,null,null,null,null,null,null,{"$f":"IF(BH113=\"\",\"\",IF(BH113>0,\"-\"))","v":""}]
[]
[]
[]
[null,null,null,null,null,null,null,null,null,null,null,null,null,null,null,null,null,null,null,null,null,null,null,null,null,null,null,null,null,null,null,null,null,null,null,null,null,null,null,null,null,null,null,null,null,null,null,null,null,null,null,null,null,null,null,null,null,{"$f":"IF(BH117=\"\",\"\",IF(BH117>0,\"-\"))","v":""}]
[]
[]
[]
[null,null,null,null,null,null,null,null,null,null,null,null,null,null,null,null,null,null,null,null,null,null,null,null,null,null,null,null,null,null,null,null,null,null,null,null,null,null,null,null,null,null,null,null,null,null,null,null,null,null,null,null,null,null,null,null,null,{"$f":"IF(BH121=\"\",\"\",IF(BH121>0,\"-\"))","v":""}]
[]
[]
[]
[null,null,null,null,null,null,null,null,null,null,null,null,null,null,null,null,null,null,null,null,null,null,null,null,null,null,null,null,null,null,null,null,null,null,null,null,null,null,null,null,null,null,null,null,null,null,null,null,null,null,null,null,null,null,null,null,null,{"$f":"IF(BH125=\"\",\"\",IF(BH125>0,\"-\"))","v":""}]

{"sheet":"Laufblatt","index":1,"n_rows":125,"n_cols":60,"rows_kept":125,"cut":false,"hidden":false,"merged":[[12,2,19,98],[116,57,117,58],[116,59,119,94],[120,57,121,58],[120,59,123,94],[92,57,93,58],[92,59,95,94],[96,57,97,58],[96,59,99,94],[100,57,101,58],[100,59,103,94],[80,57,81,58],[80,59,83,94],[84,57,85,58],[84,59,87,94],[88,57,89,58],[124,57,125,58],[124,59,127,94],[104,57,105,58],[104,59,107,94],[108,57,109,58],[108,59,111,94],[112,57,113,58],[112,59,115,94],[88,59,91,94],[31,24,31,37],[31,38,33,40],[31,41,33,47],[31,48,33,51],[32,24,33,37],[77,56,78,94],[25,24,26,37],[25,38,26,51],[27,41,27,47],[27,48,27,51],[28,24,28,37],[28,38,30,40],[28,41,30,47],[28,48,30,51],[29,24,30,37],[21,24,21,37],[21,38,21,51],[22,24,23,37],[22,38,23,51],[24,24,24,37],[24,38,24,51]]}
[]
[]
[]
[]
[]
[]
[]
[]
[]
[]
[]
[]
[null,null,"Dies ist ein Laufblatt"]
[]
[]
[]
[]
[]
[]
[]
[]
[null,null,null,null,null,null,null,null,null,null,null,null,null,null,null,null,null,null,null,null,null,null,null,null,"Fahrzeug-Nr.:",null,null,null,null,null,null,null,null,null,null,null,null,null,"Farbe:"]
[null,null,null,null,null,null,null,null,null,null,null,null,null,null,null,null,null,null,null,null,null,null,null,null,"124028",null,null,null,null,null,null,null,null,null,null,null,null,null,"Platinium Grau Metallic"]
[]
[null,null,null,null,null,null,null,null,null,null,null,null,null,null,null,null,null,null,null,null,null,null,null,null,"Fahrzeug-Marke:",null,null,null,null,null,null,null,null,null,null,null,null,null,"Ausführung"]
[null,null,null,null,null,null,null,null,null,null,null,null,null,null,null,null,null,null,null,null,null,null,null,null,"Peugeot",null,null,null,null,null,null,null,null,null,null,null,null,null,"Rifter L1 Active Pack PT 110 "]
[]
[null,null,null,null,null,null,null,null,null,null,null,null,null,null,null,null,null,null,null,null,null,null,null,null,null,null,null,null,null,null,null,null,null,null,null,null,null,null,null,null,null,"Datum",null,null,null,null,null,null,"Uhrzeit"]
[null,null,null,null,null,null,null,null,null,null,null,null,null,null,null,null,null,null,null,null,null,null,null,null,"Kunde:",null,null,null,null,null,null,null,null,null,null,null,null,null,"Fertig-stellung:",null,null,"05.09.2025",null,null,null,null,null,null,"10:00"]
[null,null,null,null,null,null,null,null,null,null,null,null,null,null,null,null,null,null,null,null,null,null,null,null,"Janine Krieger"]
[]
[null,null,null,null,null,null,null,null,null,null,null,null,null,null,null,null,null,null,null,null,null,null,null,null,"Verkäufer:",null,null,null,null,null,null,null,null,null,null,null,null,null,"Auslie-ferung:",null,null,"06.09.2025",null,null,null,null,null,null,"12:00"]
[null,null,null,null,null,null,null,null,null,null,null,null,null,null,null,null,null,null,null,null,null,null,null,null,"Dirk Graf"]
[]
[]
[]
[]
[]
[]
[]
[]
[]
[]
[]
[]
[]
[]
[]
[]
[]
[]
[]
[]
[]
[]
[]
[]
[]
[]
[]
[]
[]
[]
[]
[]
[]
[]
[]
[]
[]
[]
[]
[]
[]
[]
[]
[]
[null,null,null,null,null,null,null,null,null,null,null,null,null,null,null,null,null,null,null,null,null,null,null,null,null,null,null,null,null,null,null,null,null,null,null,null,null,null,null,null,null,null,null,null,null,null,null,null,null,null,null,null,null,null,null,null,"Auszuführende Arbeiten /einzubauende Teile"]
[]
[]
[null,null,null,null,null,null,null,null,null,null,null,null,null,null,null,null,null,null,null,null,null,null,null,null,null,null,null,null,null,null,null,null,null,null,null,null,null,null,null,null,null,null,null,null,null,null,null,null,null,null,null,null,null,null,null,null,null,{"$f":"IF(BH81=\"\",\"\",IF(BH81>0,\"-\"))","v":"-"},null,"VFW zur Auslieferung vorbereiten"]
[]
[]
[]
[null,null,null,null,null,null,null,null,null,null,null,null,null,null,null,null,null,null,null,null,null,null,null,null,null,null,null,null,null,null,null,null,null,null,null,null,null,null,null,null,null,null,null,null,null,null,null,null,null,null,null,null,null,null,null,null,null,{"$f":"IF(BH85=\"\",\"\",IF(BH85>0,\"-\"))","v":"-"},null,"Übergabe-Durchsicht durchführen (letzte Inspektion 26.05.2025)"]
[]
[]
[]
[null,null,null,null,null,null,null,null,null,null,null,null,null,null,null,null,null,null,null,null,null,null,null,null,null,null,null,null,null,null,null,null,null,null,null,null,null,null,null,null,null,null,null,null,null,null,null,null,null,null,null,null,null,null,null,null,null,{"$f":"IF(BH89=\"\",\"\",IF(BH89>0,\"-\"))","v":"-"},null,"GW-Aufbereitung"]
[]
[]
[]
[null,null,null,null,null,null,null,null,null,null,null,null,null,null,null,null,null,null,null,null,null,null,null,null,null,null,null,null,null,null,null,null,null,null,null,null,null,null,null,null,null,null,null,null,null,null,null,null,null,null,null,null,null,null,null,null,null,{"$f":"IF(BH93=\"\",\"\",IF(BH93>0,\"-\"))","v":"-"},null,"eingelagerte Winterkompletträder in Fahrzeug legen"]
[]
[]
[]
[null,null,null,null,null,null,null,null,null,null,null,null,null,null,null,null,null,null,null,null,null,null,null,null,null,null,null,null,null,null,null,null,null,null,null,null,null,null,null,null,null,null,null,null,null,null,null,null,null,null,null,null,null,null,null,null,null,{"$f":"IF(BH97=\"\",\"\",IF(BH97>0,\"-\"))","v":"-"},null,"TÜV & AU durchführen"]
[]
[]
[]
[null,null,null,null,null,null,null,null,null,null,null,null,null,null,null,null,null,null,null,null,null,null,null,null,null,null,null,null,null,null,null,null,null,null,null,null,null,null,null,null,null,null,null,null,null,null,null,null,null,null,null,null,null,null,null,null,null,{"$f":"IF(BH101=\"\",\"\",IF(BH101>0,\"-\"))","v":""}]
[]
[]
[]
[null,null,null,null,null,null,null,null,null,null,null,null,null,null,null,null,null,null,null,null,null,null,null,null,null,null,null,null,null,null,null,null,null,null,null,null,null,null,null,null,null,null,null,null,null,null,null,null,null,null,null,null,null,null,null,null,null,{"$f":"IF(BH105=\"\",\"\",IF(BH105>0,\"-\"))","v":""}]
[]
[]
[]
[null,null,null,null,null,null,null,null,null,null,null,null,null,null,null,null,null,null,null,null,null,null,null,null,null,null,null,null,null,null,null,null,null,null,null,null,null,null,null,null,null,null,null,null,null,null,null,null,null,null,null,null,null,null,null,null,null,{"$f":"IF(BH109=\"\",\"\",IF(BH109>0,\"-\"))","v":""}]
[]
[]
[]
[null,null,null,null,null,null,null,null,null,null,null,null,null,null,null,null,null,null,null,null,null,null,null,null,null,null,null,null,null,null,null,null,null,null,null,null,null,null,null,null,null,null,null,null,null,null,null,null,null,null,null,null,null,null,null,null,null,{"$f":"IF(BH113=\"\",\"\",IF(BH113>0,\"-\"))","v":""}]
[]
[]
[]
[null,null,null,null,null,null,null,null,null,null,null,null,null,null,null,null,null,null,null,null,null,null,null,null,null,null,null,null,null,null,null,null,null,null,null,null,null,null,null,null,null,null,null,null,null,null,null,null,null,null,null,null,null,null,null,null,null,{"$f":"IF(BH117=\"\",\"\",IF(BH117>0,\"-\"))","v":""}]
[]
[]
[]
[null,null,null,null,null,null,null,null,null,null,null,null,null,null,null,null,null,null,null,null,null,null,null,null,null,null,null,null,null,null,null,null,null,null,null,null,null,null,null,null,null,null,null,null,null,null,null,null,null,null,null,null,null,null,null,null,null,{"$f":"IF(BH121=\"\",\"\",IF(BH121>0,\"-\"))","v":""}]
[]
[]
[]
[null,null,null,null,null,null,null,null,null,null,null,null,null,null,null,null,null,null,null,null,null,null,null,null,null,null,null,null,null,null,null,null,null,null,null,null,null,null,null,null,null,null,null,null,null,null,null,null,null,null,null,null,null,null,null,null,null,{"$f":"IF(BH125=\"\",\"\",IF(BH125>0,\"-\"))","v":""}]

{"sheet":"Einstellungen","index":2,"n_rows":7,"n_cols":7,"rows_kept":7,"cut":false,"hidden":false,"merged":[[0,0,0,6]]}
["Drucker"]
["Druckername","IP","Standort","Papier","Rechnername","Drucker-IP","Standard-Gateway"]
["Canon GX7000 series Kassette 1 duplex","192.168.100.130","Verkauf Aßlar Dirk Graf","weißes Papier","WZ-Q510","192.168.100.130","192.168.100.201"]
["Canon GX7000 series Kassette 1 einseitig","192.168.100.130","Verkauf Aßlar Dirk Graf","weißes Papier","WZ-Q510","192.168.100.130","192.168.100.201"]
["Canon GX7000 series Kassette 2 duplex","192.168.100.130","Verkauf Aßlar Dirk Graf","grünes Papier","WZ-Q510","192.168.100.130","192.168.100.201"]
["Canon GX7000 series Kassette 2 einseitig","192.168.100.130","Verkauf Aßlar Dirk Graf","grünes Papier","WZ-Q510","192.168.100.130","192.168.100.201"]
["PDF24",null,"Verkauf Aßlar Dirk Graf","PDF Datei"]

{"sheet":"Tabelle3","index":3,"n_rows":0,"n_cols":0,"rows_kept":0,"cut":false,"hidden":false,"merged":[]}